[Event "90th GER-ch 2019"]
[Site "Magdeburg"]
[Date "2019.05.26"]
[Round "1.3"]
[White "Kollars, Dmitrij"]
[Black "Wachinger, Nikolas"]
[Result "1-0"]
[ECO "B23"]
[WhiteElo "2561"]
[BlackElo "2311"]
[Annotator "ChessBase"]
[PlyCount "81"]
[EventDate "2019.05.26"]
[EventType "tourn"]
[EventCountry "GER"]
[SourceTitle "playchess.com"]
[Source "ChessBase"]
[SourceQuality "1"]
[TimeControl "40/5400+30:1800+30"]

1. e4 {[%emt 0:00:00]} c5 {[%emt 0:00:00]} 2. Nc3 {[%emt 0:00:00]} d6 {[%emt 0:00:00]} 3. d4 {[%emt 0:00:00]} cxd4 {[%emt 0:00:02]} 4. Qxd4 {[%emt 0:00:06]} Nc6 {[%emt 0:00:08]} 5. Qd2 {[%emt 0:00:13]} g6 {[%emt 0:00:09]} 6. b3 {[%emt 0:00:13]} Bh6 {[%emt 0:00:12]} 7. f4 {[%emt 0:00:11]} Nf6 {[%emt 0:00:14]} 8. Bb2 {[%emt 0:00:18]} O-O {[%emt 0:01:26]} 9. O-O-O {[%emt 0:00:10]} a5 {[%emt 0:00:09]} 10. a4 {[%emt 0:00:22]} e5 {[%emt 0:01:13]} 11. g3 {[%emt 0:00:09]} Be6 {[%emt 0:07:19]} 12. Kb1 {[%emt 0:00:32]} Qb6 {[%emt 0:10:16]} 13. Bh3 {[%emt 0:01:05]} Nd4 {[%emt 0:05:55]} 14. Qf2 {[%emt 0:14:53]} Nd7 {[%emt 0:24:24]} 15. Bxe6 {[%emt 0:24:12]} fxe6 {[%emt 0:00:46]} 16. Nce2 {[%emt 0:01:45]} Nxe2 {[%emt 0:02:30]} 17. Qxb6 {[%emt 0:00:09]} Nxb6 {[%emt 0:00:06]} 18. Nxe2 {[%emt 0:00:16]} exf4 {[%emt 0:04:58]} 19. Rxd6 {[%emt 0:17:35]} f3 {[%emt 0:02:57]} 20. Nf4 {[%emt 0:00:09]} Bxf4 {[%emt 0:09:26]} 21. gxf4 {[%emt 0:01:46]} Nc8 {[%emt 0:03:41]} 22. Rd7 {[%emt 0:01:32]} Rxf4 {[%emt 0:01:55]} 23. Rf1 {[%emt 0:00:48]} Rf7 {[%emt 0:06:44]} 24. Rxf7 {[%emt 0:01:31]} Kxf7 {[%emt 0:00:02]} 25. Rxf3+ {[%emt 0:00:10]} Ke8 {[%emt 0:00:24]} 26. Ba3 {[%emt 0:02:50]} Ne7 {[%emt 0:01:54]} 27. Rh3 {[%emt 0:00:51]} h5 {[%emt 0:00:34]} 28. Rg3 {[%emt 0:03:53]} Rd8 {[%emt 0:02:12]} 29. Bxe7 {[%emt 0:01:02]} Kxe7 {[%emt 0:00:11]} 30. Rxg6 {[%emt 0:00:04]} b6 {[%emt 0:01:03]} 31. Rh6 {[%emt 0:02:07]} Rd4 {[%emt 0:08:00]} 32. Rxh5 {[%emt 0:00:46]} Rxe4 {[%emt 0:00:33]} 33. Rb5 {[%emt 0:00:15]} Rd4 {[%emt 0:00:50]} 34. Rxb6 {[%emt 0:05:15]} e5 {[%emt 0:00:06]} 35. Kb2 {[%emt 0:02:28]} e4 {[%emt 0:02:53]} 36. Kc3 {[%emt 0:00:22]} Rd8 {[%emt 0:00:48]} 37. Rh6 {[%emt 0:01:00]} Kf7 {[%emt 0:01:05]} 38. Rh4 {[%emt 0:00:29]} Re8 {[%emt 0:00:37]} 39. Kd2 {[%emt 0:00:12]} Kf6 {[%emt 0:00:56]} 40. Rh5 {[%emt 0:00:36]} Rd8+ {[%emt 0:00:27]} 41. Ke3 {[%emt 0:30:10]} 1-0

[Event "90th GER-ch 2019"]
[Site "Magdeburg"]
[Date "2019.05.26"]
[Round "1.4"]
[White "Becker, Marcel"]
[Black "Stern, Rene"]
[Result "1/2-1/2"]
[ECO "D31"]
[WhiteElo "2308"]
[BlackElo "2538"]
[Annotator "RC"]
[PlyCount "58"]
[EventDate "2019.05.26"]
[EventType "tourn"]
[EventCountry "GER"]
[SourceTitle "playchess.com"]
[Source "ChessBase"]
[SourceQuality "1"]
[TimeControl "40/5400+30:1800+30"]

1. d4 {[%emt 0:00:00]} d5 {[%emt 0:00:00]} 2. c4 {[%emt 0:00:00]} e6 {[%emt 0:00:00]} 3. Nc3 {[%emt 0:00:00]} a6 {[%emt 0:00:00]} 4. cxd5 {[%emt 0:03:49]} exd5 {[%emt 0:00:06]} 5. Bf4 {[%emt 0:02:27]} Nf6 {[%emt 0:00:42]} 6. e3 {[%emt 0:00:33]} Bd6 {[%emt 0:00:37]} 7. Bxd6 {[%emt 0:02:18]} Qxd6 {[%emt 0:00:07]} 8. Bd3 {[%emt 0:00:28]} O-O {[%emt 0:01:50]} 9. Qc2 {[%emt 0:02:43]} Nc6 {[%emt 0:02:57]} 10. a3 {[%emt 0:00:43]} Bg4 {[%emt 0:02:40]} 11. Nge2 {[%emt 0:03:05]} Bxe2 {[%emt 0:05:03]} 12. Bxe2 {[%emt 0:00:55]} Nd8 {[%emt 0:03:01]} 13. O-O {[%emt 0:00:56]} c6 {[%emt 0:00:15]} 14. Na4 {[%emt 0:02:25]} Ne6 {[%emt 0:00:27]} 15. Rfc1 {[%emt 0:01:13]} Qe7 {[%emt 0:08:03]} 16. Bd3 {[%emt 0:07:06]} g6 {[%emt 0:00:53]} 17. b4 {[%emt 0:03:03]} Ne8 {[%emt 0:00:14]} 18. Nc5 {[%emt 0:05:24]} Nd6 {[%emt 0:00:24]} 19. a4 {[%emt 0:09:38]} Rfc8 {[%emt 0:06:25]} 20. Qb3 {[%emt 0:05:17]} b5 {[%emt 0:20:10]} 21. axb5 {[%emt 0:04:25]} axb5 {[%emt 0:00:42]} 22. Rxa8 {[%emt 0:06:16]} Rxa8 {[%emt 0:00:28]} 23. Nxe6 {[%emt 0:00:14]} fxe6 {[%emt 0:00:05]} 24. Rxc6 {[%emt 0:00:14]} Ra1+ {[%emt 0:00:08]} 25. Bf1 {[%emt 0:00:18]} Nc4 {[%emt 0:00:19]} 26. Qc3 {[%emt 0:00:28]} Rd1 {[%emt 0:26:42]} 27. Qc2 {[%emt 0:07:00]} Ra1 {[%emt 0:00:09]} 28. Qc3 {[%emt 0:00:12]} Rd1 {[%emt 0:08:17]} 29. Qc2 {[%emt 0:02:34]} Ra1 {[%emt 0:00:05]} 1/2-1/2

[Event "90th GER-ch 2019"]
[Site "Magdeburg"]
[Date "2019.05.26"]
[Round "1.5"]
[White "Engel, Luis"]
[Black "Schulz, Lukas"]
[Result "1-0"]
[ECO "B30"]
[WhiteElo "2512"]
[BlackElo "2302"]
[Annotator "ChessBase"]
[PlyCount "37"]
[EventDate "2019.05.26"]
[EventType "tourn"]
[EventCountry "GER"]
[SourceTitle "playchess.com"]
[Source "ChessBase"]
[SourceQuality "1"]
[TimeControl "40/5400+30:1800+30"]

1. e4 {[%emt 0:00:00]} c5 {[%emt 0:00:00]} 2. Nf3 {[%emt 0:00:00]} Nc6 {[%emt 0:00:00]} 3. Bb5 {[%emt 0:00:00]} d6 {[%emt 0:00:11]} 4. O-O {[%emt 0:00:00]} Bd7 {[%emt 0:00:23]} 5. Re1 {[%emt 0:00:08]} Nf6 {[%emt 0:01:11]} 6. c3 {[%emt 0:00:10]} a6 {[%emt 0:00:26]} 7. Bf1 {[%emt 0:00:07]} g6 {[%emt 0:01:38]} 8. d4 {[%emt 0:00:54]} Bg7 {[%emt 0:12:55]} 9. e5 {[%emt 0:04:00]} dxe5 {[%emt 0:01:54]} 10. dxe5 {[%emt 0:00:45]} Ng4 {[%emt 0:02:31]} 11. Bf4 {[%emt 0:00:28]} g5 {[%emt 0:07:42]} 12. Nxg5 {[%emt 0:03:11]} Bxe5 {[%emt 0:07:44]} 13. Bxe5 {[%emt 0:06:50]} Ngxe5 {[%emt 0:02:08]} 14. f4 {[%emt 0:10:12]} Ng6 {[%emt 0:09:35]} 15. Bc4 {[%emt 0:02:51]} e6 {[%emt 0:05:36]} 16. Nd2 {[%emt 0:08:17]} Na5 {[%emt 0:18:09]} 17. Qh5 {[%emt 0:04:39]} Qf6 {[%emt 0:11:48]} 18. Nge4 {[%emt 0:03:38]} Qe7 {[%emt 0:09:58]} 19. f5 {[%emt 0:01:37]} 1-0

[Event "90th GER-ch 2019"]
[Site "Magdeburg"]
[Date "2019.05.26"]
[Round "1.6"]
[White "Bastian, Herbert"]
[Black "Krassowizkij, Jaroslaw"]
[Result "0-1"]
[ECO "C02"]
[WhiteElo "2297"]
[BlackElo "2450"]
[Annotator "ChessBase"]
[PlyCount "74"]
[EventDate "2019.05.26"]
[EventType "tourn"]
[EventCountry "GER"]
[SourceTitle "playchess.com"]
[Source "ChessBase"]
[SourceQuality "1"]
[TimeControl "40/5400+30:1800+30"]

1. e4 {[%emt 0:00:00]} e6 {[%emt 0:00:00]} 2. d4 {[%emt 0:01:26]} d5 {[%emt 0:00:00]} 3. e5 {[%emt 0:01:15]} c5 {[%emt 0:00:00]} 4. c3 {[%emt 0:00:26]} Nc6 {[%emt 0:00:01]} 5. Nf3 {[%emt 0:00:27]} Qb6 {[%emt 0:00:23]} 6. a3 {[%emt 0:10:09]} Nh6 {[%emt 0:00:36]} 7. b4 {[%emt 0:01:42]} cxd4 {[%emt 0:00:09]} 8. cxd4 {[%emt 0:00:05]} Nf5 {[%emt 0:00:29]} 9. Bb2 {[%emt 0:00:47]} Bd7 {[%emt 0:00:39]} 10. Be2 {[%emt 0:01:47]} Be7 {[%emt 0:15:44]} 11. O-O {[%emt 0:03:01]} Rc8 {[%emt 0:09:38]} 12. Qd2 {[%emt 0:16:35]} h5 {[%emt 0:16:07]} 13. Rd1 {[%emt 0:24:28]} g5 {[%emt 0:11:08]} 14. Bc3 {[%emt 0:02:21]} a6 {[%emt 0:11:38]} 15. Ne1 {[%emt 0:03:47]} g4 {[%emt 0:04:04]} 16. Nc2 {[%emt 0:01:34]} Rg8 {[%emt 0:00:20]} 17. a4 {[%emt 0:10:21]} Bg5 {[%emt 0:02:35]} 18. Qe1 {[%emt 0:02:55]} Nce7 {[%emt 0:01:37]} 19. g3 {[%emt 0:03:42]} f6 {[%emt 0:02:12]} 20. Bd3 {[%emt 0:01:24]} fxe5 {[%emt 0:00:53]} 21. Qxe5 {[%emt 0:00:34]} Kf7 {[%emt 0:03:53]} 22. Qe2 {[%emt 0:03:33]} Bf6 {[%emt 0:01:55]} 23. a5 {[%emt 0:01:37]} Qd6 {[%emt 0:02:19]} 24. b5 {[%emt 0:01:03]} Bxb5 {[%emt 0:00:40]} 25. Bxb5 {[%emt 0:00:06]} axb5 {[%emt 0:00:03]} 26. Qxb5 {[%emt 0:00:51]} Qc6 {[%emt 0:05:43]} 27. Qd3 {[%emt 0:01:08]} Qc4 {[%emt 0:00:26]} 28. a6 {[%emt 0:00:59]} bxa6 {[%emt 0:00:07]} 29. Rxa6 {[%emt 0:00:10]} Qxd3 {[%emt 0:02:34]} 30. Rxd3 {[%emt 0:00:02]} Rc6 {[%emt 0:00:09]} 31. Ra7 {[%emt 0:02:14]} Rb8 {[%emt 0:02:14]} 32. Nd2 {[%emt 0:01:11]} Rbc8 {[%emt 0:02:37]} 33. Ra3 {[%emt 0:01:18]} Nd6 {[%emt 0:01:16]} 34. Nb4 {[%emt 0:00:15]} Rb6 {[%emt 0:00:27]} 35. Ra6 {[%emt 0:00:35]} Rxa6 {[%emt 0:00:31]} 36. Nxa6 {[%emt 0:00:03]} Nb5 {[%emt 0:00:34]} 37. Bb2 {[%emt 0:00:35]} Rc2 {[%emt 0:00:59]} 0-1

[Event "90th GER-ch 2019"]
[Site "Magdeburg"]
[Date "2019.05.26"]
[Round "1.8"]
[White "Trifan, Andrei Ioan"]
[Black "Kvetny, Mark"]
[Result "1-0"]
[ECO "B13"]
[WhiteElo "2268"]
[BlackElo "2414"]
[Annotator "NA"]
[PlyCount "33"]
[EventDate "2019.05.26"]
[EventType "tourn"]
[EventCountry "GER"]
[SourceTitle "playchess.com"]
[Source "ChessBase"]
[SourceQuality "1"]
[TimeControl "40/5400+30:1800+30"]

1. e4 {[%emt 0:00:00]} c6 {[%emt 0:00:00]} 2. d4 {[%emt 0:00:38]} d5 {[%emt 0:00:00]} 3. exd5 {[%emt 0:00:25]} cxd5 {[%emt 0:00:00]} 4. c4 {[%emt 0:00:40]} Nf6 {[%emt 0:00:13]} 5. Nc3 {[%emt 0:01:26]} Be6 {[%emt 0:01:33]} 6. Qb3 {[%emt 0:19:37]} Nc6 {[%emt 0:18:18]} 7. cxd5 {[%emt 0:19:05]} Nxd5 {[%emt 0:01:50]} 8. Qxb7 {[%emt 0:09:39]} Nxd4 {[%emt 0:06:22]} 9. Bb5+ {[%emt 0:05:03]} Nxb5 {[%emt 0:00:28]} 10. Qxb5+ {[%emt 0:01:28]} Qd7 {[%emt 0:00:10]} 11. Qxd7+ {[%emt 0:04:44]} Kxd7 {[%emt 0:00:08]} 12. Nge2 {[%emt 0:00:07]} Nxc3 {[%emt 0:10:01]} 13. Nxc3 {[%emt 0:00:31]} Bc4 {[%emt 0:01:18]} 14. f4 {[%emt 0:03:26]} e6 {[%emt 0:12:38]} 15. Be3 {[%emt 0:04:54]} Rb8 {[%emt 0:06:32]} 16. Bxa7 {[%emt 0:04:13]} Rxb2 {[%emt 0:02:41]} 17. O-O-O+ {[%emt 0:00:26]} 1-0

[Event "90th GER-ch 2019"]
[Site "Magdeburg"]
[Date "2019.05.26"]
[Round "1.9"]
[White "Rosner, Jonas"]
[Black "Heimrath, Reiner"]
[Result "1/2-1/2"]
[ECO "C60"]
[WhiteElo "2413"]
[BlackElo "2239"]
[Annotator "NA RC"]
[PlyCount "100"]
[EventDate "2019.05.26"]
[EventType "tourn"]
[EventCountry "GER"]
[SourceTitle "playchess.com"]
[Source "ChessBase"]
[SourceQuality "1"]
[TimeControl "40/5400+30:1800+30"]

1. e4 {[%emt 0:00:00]} e5 {[%emt 0:00:00]} 2. Nf3 {[%emt 0:00:00]} Nc6 {[%emt 0:00:00]} 3. Bb5 {[%emt 0:00:00]} Nge7 {[%emt 0:00:12]} 4. Nc3 {[%emt 0:00:41]} d6 {[%emt 0:08:28]} 5. d4 {[%emt 0:01:51]} exd4 {[%emt 0:00:07]} 6. Nxd4 {[%emt 0:00:09]} Bd7 {[%emt 0:00:27]} 7. Bg5 {[%emt 0:15:00]} h6 {[%emt 0:02:28]} 8. Be3 {[%emt 0:03:20]} a6 {[%emt 0:11:45]} 9. Be2 {[%emt 0:02:11]} Nxd4 {[%emt 0:16:37]} 10. Qxd4 {[%emt 0:03:46]} Nc6 {[%emt 0:00:27]} 11. Qd2 {[%emt 0:01:08]} Be7 {[%emt 0:02:20]} 12. O-O-O {[%emt 0:02:56]} Bf6 {[%emt 0:07:46]} 13. Nd5 {[%emt 0:03:57]} Be6 {[%emt 0:00:13]} 14. f4 {[%emt 0:05:18]} Bxd5 {[%emt 0:03:02]} 15. Qxd5 {[%emt 0:11:52]} Qe7 {[%emt 0:03:10]} 16. Kb1 {[%emt 0:07:14]} Nb4 {[%emt 0:24:08]} 17. Qb3 {[%emt 0:13:03]} c5 {[%emt 0:00:28]} 18. Rhe1 {[%emt 0:05:25]} O-O {[%emt 0:00:49]} 19. Bc4 {[%emt 0:03:46]} Rac8 {[%emt 0:05:42]} 20. Bd5 {[%emt 0:02:39]} Qc7 {[%emt 0:03:11]} 21. g4 {[%emt 0:01:27]} Qb6 {[%emt 0:01:28]} 22. Bc1 {[%emt 0:02:48]} Nxd5 {[%emt 0:02:18]} 23. Qxd5 {[%emt 0:00:51]} c4 {[%emt 0:02:17]} 24. Qxd6 {[%emt 0:03:02]} Rc6 {[%emt 0:00:05]} 25. Qa3 {[%emt 0:00:33]} Bd4 {[%emt 0:00:18]} 26. Be3 {[%emt 0:02:12]} Rd8 {[%emt 0:00:17]} 27. Rxd4 {[%emt 0:02:57]} Rxd4 {[%emt 0:00:07]} 28. Bxd4 {[%emt 0:00:28]} Qxd4 {[%emt 0:00:06]} 29. Qe3 {[%emt 0:00:19]} Qd8 {[%emt 0:01:30]} 30. e5 {[%emt 0:01:00]} c3 {[%emt 0:00:07]} 31. b3 {[%emt 0:02:27]} Qe7 {[%emt 0:02:41]} 32. Ka1 {[%emt 0:02:37]} b5 {[%emt 0:01:34]} 33. f5 {[%emt 0:00:41]} a5 {[%emt 0:00:48]} 34. Qd4 {[%emt 0:00:44]} Qa3 {[%emt 0:00:53]} 35. Rb1 {[%emt 0:00:03]} Rc8 {[%emt 0:01:04]} 36. Qd7 {[%emt 0:00:18]} Qc5 {[%emt 0:00:07]} 37. e6 {[%emt 0:00:24]} fxe6 {[%emt 0:00:35]} 38. fxe6 {[%emt 0:00:02]} Qc6 {[%emt 0:00:26]} 39. Qf7+ {[%emt 0:00:45]} Kh7 {[%emt 0:00:03]} 40. Qf5+ {[%emt 0:00:45]} Kg8 {[%emt 0:00:43]} 41. Qf7+ {[%emt 0:08:35]} Kh7 {[%emt 0:02:37]} 42. e7 {[%emt 0:00:13]} Re8 {[%emt 0:08:20]} 43. h4 {[%emt 0:03:55]} Qd7 {[%emt 0:01:15]} 44. Re1 {[%emt 0:00:55]} Qd2 {[%emt 0:06:34]} 45. Qf5+ {[%emt 0:00:48]} Kh8 {[%emt 0:02:25]} 46. Rf1 {[%emt 0:15:23]} Qe2 {[%emt 0:02:46]} 47. Qf8+ {[%emt 0:00:16]} Kh7 {[%emt 0:00:07]} 48. Qf5+ {[%emt 0:03:36]} Kh8 {[%emt 0:00:09]} 49. Qf8+ {[%emt 0:00:04]} Kh7 {[%emt 0:00:06]} 50. Qf5+ {[%emt 0:01:52]} Kh8 {[%emt 0:00:06]} 1/2-1/2

[Event "90th GER-ch 2019"]
[Site "Magdeburg"]
[Date "2019.05.26"]
[Round "1.10"]
[White "Polster, Christian"]
[Black "Roseneck, Jonas"]
[Result "1-0"]
[ECO "A28"]
[WhiteElo "2236"]
[BlackElo "2403"]
[Annotator "NA RC"]
[PlyCount "93"]
[EventDate "2019.05.26"]
[EventType "tourn"]
[EventCountry "GER"]
[SourceTitle "playchess.com"]
[Source "ChessBase"]
[SourceQuality "1"]
[TimeControl "40/5400+30:1800+30"]

1. c4 {[%emt 0:00:00]} e5 {[%emt 0:00:44]} 2. Nc3 {[%emt 0:00:00]} Nf6 {[%emt 0:00:15]} 3. Nf3 {[%emt 0:00:39]} Nc6 {[%emt 0:00:06]} 4. e3 {[%emt 0:00:25]} Bb4 {[%emt 0:00:19]} 5. Qc2 {[%emt 0:00:57]} Bxc3 {[%emt 0:01:55]} 6. bxc3 {[%emt 0:04:44]} e4 {[%emt 0:06:11]} 7. Nd4 {[%emt 0:01:20]} Ne5 {[%emt 0:02:45]} 8. f4 {[%emt 0:19:41]} exf3 {[%emt 0:24:23]} 9. Nxf3 {[%emt 0:02:50]} Nxf3+ {[%emt 0:05:54]} 10. gxf3 {[%emt 0:00:12]} d5 {[%emt 0:04:36]} 11. d4 {[%emt 0:04:15]} O-O {[%emt 0:03:59]} 12. cxd5 {[%emt 0:08:14]} Qxd5 {[%emt 0:05:40]} 13. Be2 {[%emt 0:10:28]} Bf5 {[%emt 0:04:26]} 14. Qb3 {[%emt 0:03:16]} Rfe8 {[%emt 0:03:15]} 15. Bd2 {[%emt 0:07:50]} Qd8 {[%emt 0:08:28]} 16. e4 {[%emt 0:18:13]} Be6 {[%emt 0:07:32]} 17. Qb5 {[%emt 0:01:37]} h6 {[%emt 0:04:36]} 18. Rg1 {[%emt 0:07:13]} Kh8 {[%emt 0:00:24]} 19. O-O-O {[%emt 0:02:21]} c6 {[%emt 0:04:46]} 20. Qb2 {[%emt 0:00:20]} c5 {[%emt 0:01:17]} 21. Bb5 {[%emt 0:01:20]} Bd7 {[%emt 0:00:52]} 22. dxc5 {[%emt 0:02:59]} Qc7 {[%emt 0:02:15]} 23. Be3 {[%emt 0:01:09]} Bxb5 {[%emt 0:00:22]} 24. Qxb5 {[%emt 0:00:19]} b6 {[%emt 0:00:26]} 25. Rd2 {[%emt 0:01:06]} Rac8 {[%emt 0:02:20]} 26. Bd4 {[%emt 0:00:42]} Re6 {[%emt 0:01:13]} 27. cxb6 {[%emt 0:00:31]} Rxb6 {[%emt 0:02:15]} 28. Bxb6 {[%emt 0:00:28]} Qxc3+ {[%emt 0:00:04]} 29. Kd1 {[%emt 0:00:12]} Qxf3+ {[%emt 0:00:35]} 30. Qe2 {[%emt 0:00:40]} Qc3 {[%emt 0:01:01]} 31. Qg2 {[%emt 0:00:44]} Qc1+ {[%emt 0:01:45]} 32. Ke2 {[%emt 0:00:03]} Qc4+ {[%emt 0:00:02]} 33. Ke3 {[%emt 0:01:01]} Qc3+ {[%emt 0:01:05]} 34. Ke2 {[%emt 0:00:33]} Qc4+ {[%emt 0:00:23]} 35. Rd3 {[%emt 0:00:31]} Nh5 {[%emt 0:00:04]} 36. Be3 {[%emt 0:00:24]} Qc2+ {[%emt 0:01:13]} 37. Rd2 {[%emt 0:00:12]} Qc4+ {[%emt 0:00:00]} 38. Kf2 {[%emt 0:00:15]} Rc6 {[%emt 0:00:03]} 39. Rgd1 {[%emt 0:01:02]} Rg6 {[%emt 0:00:59]} 40. Qh3 {[%emt 0:00:26]} Qxe4 {[%emt 0:00:35]} 41. Qxh5 {[%emt 0:10:08]} Qg2+ {[%emt 0:05:26]} 42. Ke1 {[%emt 0:00:11]} Qh1+ {[%emt 0:00:03]} 43. Ke2 {[%emt 0:00:10]} Qg2+ {[%emt 0:00:04]} 44. Kd3 {[%emt 0:00:20]} Rd6+ {[%emt 0:00:04]} 45. Kc3 {[%emt 0:01:10]} Rc6+ {[%emt 0:00:05]} 46. Kb2 {[%emt 0:00:36]} Qe4 {[%emt 0:00:44]} 47. Qd5 {[%emt 0:01:18]} 1-0

[Event "90th GER-ch 2019"]
[Site "Magdeburg"]
[Date "2019.05.26"]
[Round "1.12"]
[White "Kardoeus, David"]
[Black "Winterberg, Lukas"]
[Result "0-1"]
[ECO "C07"]
[WhiteElo "2202"]
[BlackElo "2376"]
[Annotator "NA"]
[PlyCount "45"]
[EventDate "2019.05.26"]
[EventType "tourn"]
[EventCountry "GER"]
[SourceTitle "playchess.com"]
[Source "ChessBase"]
[SourceQuality "1"]
[TimeControl "40/5400+30:1800+30"]

1. e4 {[%emt 0:00:53]} e6 {[%emt 0:00:00]} 2. d4 {[%emt 0:00:45]} d5 {[%emt 0:00:00]} 3. Nd2 {[%emt 0:00:40]} c5 {[%emt 0:00:20]} 4. exd5 {[%emt 0:00:20]} Qxd5 {[%emt 0:00:16]} 5. Ngf3 {[%emt 0:00:14]} cxd4 {[%emt 0:00:13]} 6. Bc4 {[%emt 0:00:15]} Qd7 {[%emt 0:00:10]} 7. O-O {[%emt 0:00:37]} Nc6 {[%emt 0:00:21]} 8. Nb3 {[%emt 0:02:20]} a6 {[%emt 0:00:15]} 9. Nbxd4 {[%emt 0:06:23]} Nxd4 {[%emt 0:00:16]} 10. Nxd4 {[%emt 0:00:31]} Qc7 {[%emt 0:00:17]} 11. Qe2 {[%emt 0:02:56]} Bd6 {[%emt 0:00:28]} 12. Re1 {[%emt 0:31:47]} Ne7 {[%emt 0:00:23]} 13. Bg5 {[%emt 0:11:48]} Ng6 {[%emt 0:08:11]} 14. h4 {[%emt 0:19:29]} O-O {[%emt 0:03:02]} 15. h5 {[%emt 0:01:35]} Nf4 {[%emt 0:10:16]} 16. Bxf4 {[%emt 0:00:32]} Bxf4 {[%emt 0:00:04]} 17. g3 {[%emt 0:01:35]} Bd6 {[%emt 0:10:47]} 18. Rad1 {[%emt 0:10:28]} b5 {[%emt 0:08:02]} 19. Bxe6 {[%emt 0:03:18]} fxe6 {[%emt 0:01:42]} 20. Nxe6 {[%emt 0:00:10]} Qc6 {[%emt 0:01:36]} 21. Qg4 {[%emt 0:02:47]} Rf7 {[%emt 0:01:06]} 22. Re5 {[%emt 0:00:57]} Qxc2 {[%emt 0:08:03]} 23. Red5 0-1

[Event "90th GER-ch 2019"]
[Site "Magdeburg"]
[Date "2019.05.26"]
[Round "1.13"]
[White "Moeller, Dustin"]
[Black "Pajeken, Jakob Leon"]
[Result "1-0"]
[ECO "D35"]
[WhiteElo "2156"]
[BlackElo "2359"]
[Annotator "NA"]
[PlyCount "59"]
[EventDate "2019.05.26"]
[EventType "tourn"]
[EventCountry "GER"]
[SourceTitle "playchess.com"]
[Source "ChessBase"]
[SourceQuality "1"]
[TimeControl "40/5400+30:1800+30"]

1. c4 {[%emt 0:00:00]} e6 {[%emt 0:00:00]} 2. d4 {[%emt 0:00:00]} d5 {[%emt 0:00:00]} 3. Nc3 {[%emt 0:00:00]} Nf6 {[%emt 0:00:00]} 4. cxd5 {[%emt 0:00:00]} Nxd5 {[%emt 0:00:00]} 5. e4 {[%emt 0:00:01]} Nxc3 {[%emt 0:00:00]} 6. bxc3 {[%emt 0:00:06]} c5 {[%emt 0:00:05]} 7. Rb1 {[%emt 0:00:08]} Be7 {[%emt 0:00:10]} 8. Nf3 {[%emt 0:00:12]} O-O {[%emt 0:00:49]} 9. Bc4 {[%emt 0:00:06]} b6 {[%emt 0:00:58]} 10. O-O {[%emt 0:00:30]} Nc6 {[%emt 0:02:20]} 11. Be3 {[%emt 0:00:22]} Bb7 {[%emt 0:01:54]} 12. Qe2 {[%emt 0:00:07]} Qc7 {[%emt 0:06:32]} 13. Rfd1 {[%emt 0:00:28]} Rfd8 {[%emt 0:05:11]} 14. d5 {[%emt 0:04:30]} exd5 {[%emt 0:04:38]} 15. Bxd5 {[%emt 0:01:48]} Re8 {[%emt 0:13:50]} 16. Ng5 {[%emt 0:09:44]} Bxg5 {[%emt 0:01:52]} 17. Bxg5 {[%emt 0:00:03]} Qe5 {[%emt 0:02:01]} 18. f4 {[%emt 0:13:37]} Qc7 {[%emt 0:11:34]} 19. Qg4 {[%emt 0:05:41]} Kh8 {[%emt 0:04:45]} 20. Rd3 {[%emt 0:07:16]} Bc8 {[%emt 0:15:58]} 21. Qh4 {[%emt 0:06:52]} c4 {[%emt 0:08:47]} 22. Rg3 {[%emt 0:01:54]} Qd6 {[%emt 0:02:43]} 23. f5 {[%emt 0:07:18]} Bxf5 {[%emt 0:10:22]} 24. Bxc6 {[%emt 0:03:11]} Qxc6 {[%emt 0:00:10]} 25. exf5 {[%emt 0:00:07]} Re4 {[%emt 0:00:07]} 26. Rg4 {[%emt 0:10:51]} Qc5+ {[%emt 0:01:00]} 27. Kh1 {[%emt 0:01:00]} Re2 {[%emt 0:00:17]} 28. Bf6 {[%emt 0:02:48]} Rg8 {[%emt 0:00:59]} 29. Qxh7+ {[%emt 0:00:14]} Kxh7 {[%emt 0:00:03]} 30. Rh4# 1-0

[Event "90th GER-ch 2019"]
[Site "Magdeburg"]
[Date "2019.05.26"]
[Round "1.14"]
[White "Paul, Johannes"]
[Black "Adiyaman, Rene"]
[Result "1-0"]
[ECO "D11"]
[WhiteElo "2364"]
[BlackElo "2175"]
[Annotator "NA"]
[PlyCount "107"]
[EventDate "2019.05.26"]
[EventType "tourn"]
[EventCountry "GER"]
[SourceTitle "playchess.com"]
[Source "ChessBase"]
[SourceQuality "1"]
[TimeControl "40/5400+30:1800+30"]

1. d4 d5 2. c4 c6 3. Nf3 Nf6 4. e3 g6 5. Nc3 Bg7 6. Be2 O-O 7. O-O Nbd7 8. cxd5 cxd5 9. Qb3 e6 10. Bd2 Ne4 11. Rfc1 a6 12. Be1 Ndf6 13. a4 Re8 14. a5 Nxc3 15. bxc3 Rb8 16. Bxa6 Qd6 17. Bf1 Nd7 18. Qb4 Bf8 19. Qxd6 Bxd6 20. c4 dxc4 21. Bxc4 Nf6 22. Ne5 Ra8 23. Bb5 Re7 24. Nc4 Bc7 25. Bb4 Rd7 26. Nb6 Bxb6 27. axb6 Rxa1 28. Rxa1 Kg7 29. Bxd7 Bxd7 30. Ra8 Nd5 31. Bc5 Bc6 32. Rc8 Bd7 33. Rd8 Bc6 34. g4 Kf6 35. Rc8 Bd7 36. Rf8 h6 37. h3 Kg7 38. Kh2 Bc6 39. Rc8 Bd7 40. Rd8 Bc6 41. Kg3 Kf6 42. Rc8 Bd7 43. Rf8 Bc6 44. e4 Nc3 45. f3 Ne2+ 46. Kf2 Nf4 47. Rc8 Bb5 48. h4 Ba6 49. Bf8 g5 50. h5 e5 51. d5 Nh3+ 52. Ke3 Ng1 53. Rd8 Nxf3 54. Rd6# 1-0